Cogmind - Beta 10.2 @@@ ROGUE MODE // 2021.05.09 @ 17:34:39 Player: theq629 Result: Self-destructed Performance ------------- Evolutions (1) 500 Regions Visited (3) 600 Robots Destroyed (20) 100 Value Destroyed (706) 706 Prototype IDs (0) 0 Alien Tech Used (0) 0 Bonus (0) 0 TOTAL SCORE: 1906 Bonus ------- None Cogmind --------- Core Integrity 186/400 Matter 265/300 Energy 39/100 System Corruption 0% Temperature Cool (0) Movement Treading (160) Location -9/Storage Parts ------- > --- POWER (1) -------- (None) > --- PROPULSION (2) --- Light Treads > --- UTILITY (4) ------ Small Storage Unit ECM Suite Light Armor Plating > --- WEAPON (2) ------- Heavy Assault Rifle > --- INVENTORY (6) ---- Improved Ion Engine Light Treads Light Treads Improved Terrain Scanner Medium Laser Grenade Launcher Peak State ------------ > --- POWER ------------ Ion Engine > --- PROPULSION ------- Light Treads Light Treads > --- UTILITY ---------- Small Storage Unit Improved Terrain Scanner Hardened Light Armor Plating Hardened Light Armor Plating > --- WEAPON ----------- Assault Rifle Improved Light Cannon > --- INVENTORY -------- Ion Engine Light Treads Improved Terrain Scanner Medium Laser Medium Laser Grenade Launcher [Rating: 13] Favorites ----------- Power Ion Engine Engine Ion Engine Propulsion Light Treads Treads Light Treads Utility Hardened Light Armor Plating Device Improved Terrain Scanner Storage Small Storage Unit Protection Hardened Light Armor Plating Weapon Assault Rifle Energy Gun Medium Laser Ballistic Gun Assault Rifle Ballistic Cannon Improved Light Cannon Launcher Grenade Launcher Build | -11 -10 -9 -9 ------- Run | Scr Mat Mat Sto Slots Evolved 2 | . . 2 . Power . | . . . . Propulsion . | . . . . Utility 2 | . . 2 . Weapon . | . . . . Parts Attached 19 | 6 1 5 7 Power 2 | 1 . 1 . Engine 2 | 1 . 1 . Core . | . . . . Reactor . | . . . . Propulsion 4 | 2 . . 2 Treads 4 | 2 . . 2 Leg . | . . . . Wheel . | . . . . Hover . | . . . . Flight . | . . . . Utility 6 | 1 1 2 2 Device 2 | . . 1 1 Storage 1 | 1 . . . Processor . | . . . . Hackware . | . . . . Protection 3 | . 1 1 1 Artifact . | . . . . Weapon 7 | 2 . 2 3 Energy Gun 2 | 1 . . 1 Energy Cannon . | . . . . Ballistic Gun 2 | 1 . . 1 Ballistic Cannon 1 | . . 1 . Launcher 2 | . . 1 1 Special Weapon . | . . . . Impact Weapon . | . . . . Slashing Weapon . | . . . . Piercing Weapon . | . . . . Special Melee Weapon . | . . . . Unidentified Prototypes . | . . . . Parts Lost 9 | . . . 9 Power 1 | . . . 1 Propulsion 3 | . . . 3 Utility 3 | . . . 3 Weapon 2 | . . . 2 Highest Loss Streak 5 | . . . 5 Average Slot Usage (%) 93 | . 89 99 90 Engine 11 | . 14 11 10 Treads 22 | . 28 22 19 Device 8 | . . 11 12 Storage 11 | . 14 11 11 Protection 15 | . 4 21 16 Energy Gun 5 | . 14 4 . Ballistic Gun 11 | . 14 11 8 Ballistic Cannon 5 | . . 6 9 Naked Turns . | . . . . Heaviest Build 26 | 13 18 26 26 Greatest Support 40 | 40 40 40 40 Greatest Overweight (x) 4 | . . . 4 Average Overweight (x) . | . . . . Largest Inventory Capacity 6 | 6 6 6 6 Average Capacity 5 | 4 6 6 6 Most Carried 6 | 3 6 6 6 Average Carried 5 | 1 3 5 5 Final Capacity 6 | 6 6 6 6 Final Carried 6 | 2 6 6 6 Class Distribution -------------------- 92% | Mutant 7% | Scavenger-Mutant Dominant Class ---------------- Mutant | -10/Materials Mutant | -9/Materials Mutant | -9/Storage Resources | -11 -10 -9 -9 ----------- Run | Scr Mat Mat Sto Matter Collected 833 | 255 51 245 282 Remotely . | . . . . Salvage Created 834 | . 150 278 406 Parts 37 | . 6 8 23 Haulers Intercepted . | . . . . Recyclers Shooed 1 | . . . 1 Parts Field Recycled . | . . . . Retrieved Matter . | . . . . Parts Self-Destructed . | . . . . Prevented . | . . . . Kills | -11 -10 -9 -9 ------- Run | Scr Mat Mat Sto Combat Hostiles Destroyed 18 | . 4 4 10 Guns 9 | . 4 2 3 Cannons 8 | . . 1 7 Classes Destroyed 4 | . 1 2 1 Worker 1 | . . . 1 Recycler 1 | . . 1 . Grunt 11 | . 4 1 6 Sentry 7 | . . 3 4 Best Kill Streak 9 | . 2 2 9 Combat Bots Only 8 | . 2 2 8 Max Kills in Single Turn 1 | . 1 1 1 Gunslinging . | . . . . Exploded . | . . . . Melee . | . . . . Uniques/NPCs Destroyed . | . . . . Combat | -11 -10 -9 -9 -------- Run | Scr Mat Mat Sto Damage Taken 1596 | . 185 363 1048 Core 247 | . 33 28 186 Absorbed by Shields . | . . . . Core Remaining (%) 93 | 100 86 . . Volleys Fired 75 | . 12 22 41 Largest 2 | . 2 2 2 Hottest 79 | . 70 70 79 Shots Fired 140 | . 24 44 72 Gun 99 | . 24 36 39 Cannon 38 | . . 6 32 Launcher 3 | . . 2 1 Special . | . . . . Kinetic 103 | . 12 28 63 Thermal 34 | . 12 14 8 Explosive 3 | . . 2 1 Electromagnetic . | . . . . Robot Hit Streak 19 | . 5 19 9 Robot Miss Streak 3 | . 2 2 3 Penetration Max . | . . . . Secondary Targets 1 | . 1 . . Max Gunslinging Chain 1 | . 1 . . Shots Hit Robots 98 | . 16 34 48 Core Hits 34 | . 8 8 18 Critical Hits 1 | . 1 . . Critical Kills 1 | . 1 . . Critical Parts Destroyed . | . . . . Melee Attacks . | . . . . Impact . | . . . . Slashing . | . . . . Piercing . | . . . . Sneak Attacks . | . . . . Combat Hostiles . | . . . . Follow-up Attacks . | . . . . Damage Inflicted 1625 | . 211 465 949 Guns 966 | . 211 348 407 Cannons 571 | . . 86 485 Explosions 88 | . . 31 57 Melee . | . . . . Ramming . | . . . . Kinetic 1191 | . 84 283 824 Thermal 346 | . 127 151 68 Explosive 88 | . . 31 57 Electromagnetic . | . . . . Impact . | . . . . Slashing . | . . . . Piercing . | . . . . Highest Corruption . | . . . . Average Corruption . | . . . . Corruption Purged . | . . . . Overload Shots . | . . . . Overflow Damage . | . . . . Projectiles . | . . . . Explosions . | . . . . Melee . | . . . . Knockbacks 1 | . . . 1 Impact . | . . . . Kinetic 1 | . . . 1 Secondary . | . . . . Self-Inflicted Damage . | . . . . Shots . | . . . . Rammed . | . . . . Targets Rammed . | . . . . Kicked . | . . . . Crushed . | . . . . Highest Temperature 425 | . 182 425 414 Average Temperature 146 | . 65 135 189 Received Heat Transfer 618 | . 102 129 387 Effects 8 | . . 5 3 Shutdowns 2 | . . 1 1 Energy Bleed 2 | . . 1 1 Matter Decay 3 | . . 2 1 Damage (minor) 1 | . . 1 . Siege Activations . | . . . . Robots Corrupted . | . . . . Combat Hostiles . | . . . . Parts Fried . | . . . . Impact Corruptions . | . . . . Robots Melted 1 | . . 1 . Combat Hostiles 1 | . . 1 . Parts Melted 4 | . 1 3 . Heat Transferred 964 | . 370 444 150 Parts Sabotaged . | . . . . Parts Stolen . | . . . . Parts Stripped . | . . . . Power Chain Reactions . | . . . . Missiles Intercepted . | . . . . Alert | -11 -10 -9 -9 ------- Run | Scr Mat Mat Sto Peak Influence 331 | . 140 259 331 Initial 59 | . . 59 31 Average 128 | . 34 165 181 Maximum Alert Level 1 | . . 1 1 Low Security (%) 66 | 100 100 46 56 Level 1 33 | . . 53 43 Level 2 . | . . . . Level 3 . | . . . . Level 4 . | . . . . Level 5 . | . . . . High Security . | . . . . Max Security . | . . . . Squads Dispatched 9 | . 4 1 4 Investigation 2 | . 2 . . Extermination . | . . . . Reinforcement 5 | . 2 1 2 Assault . | . . . . Garrison 2 | . . . 2 Intercept . | . . . . Construction Impeded . | . . . . Haulers Reinforced . | . . . . Stealth | -11 -10 -9 -9 --------- Run | Scr Mat Mat Sto Distress Signals 3 | . 1 2 . Communications Jammed . | . . . . Distress Signals . | . . . . Times Spotted 33 | . 7 8 18 Peak Tracking Total 5 | . 4 3 5 Tactical Retreats 3 | . 1 1 1 Traps | -11 -10 -9 -9 ------- Run | Scr Mat Mat Sto Traps Triggered 2 | . 2 . . Indirectly . | . . . . Trap Hack Attempts . | . . . . Triggered . | . . . . Disarmed . | . . . . Reprogrammed . | . . . . Reused . | . . . . Traps Extracted . | . . . . Installed . | . . . . Triggered . | . . . . Machines | -11 -10 -9 -9 ---------- Run | Scr Mat Mat Sto Machines Disabled 1 | . . 1 . Max in Single Turn 1 | . . 1 . Machines Sabotaged . | . . . . Garrisons Compromised . | . . . . Overloaded Fab Kills . | . . . . Fab Network Shutdowns . | . . . . Hacking | -11 -10 -9 -9 --------- Run | Scr Mat Mat Sto Machines Accessed . | . . . . Terminals . | . . . . Fabricators . | . . . . Repair Stations . | . . . . Recycling Units . | . . . . Scanalyzers . | . . . . Garrison Access . | . . . . Total Hacks . | . . . . Successful . | . . . . Failed . | . . . . Catastrophic . | . . . . Database Lockouts . | . . . . Manual . | . . . . Terminals . | . . . . Fabricators . | . . . . Repair Stations . | . . . . Recycling Units . | . . . . Scanalyzers . | . . . . Garrison Access . | . . . . Terminal Hacks . | . . . . Fabricator Hacks . | . . . . Repair Station Hacks . | . . . . Recycling Unit Hacks . | . . . . Scanalyzer . | . . . . Garrison Access Hacks . | . . . . Unauthorized Hacks . | . . . . Terminals . | . . . . Fabricators . | . . . . Repair Stations . | . . . . Recycling Units . | . . . . Scanalyzers . | . . . . Garrison Access . | . . . . Data Cores Recovered . | . . . . Used . | . . . . Hacking Detections . | . . . . Full Trace Events . | . . . . Feedback Events . | . . . . Feedback Blocked . | . . . . Robot Schematics Acquired . | . . . . Robots Built . | . . . . Matter . | . . . . Time . | . . . . Total Robot Build Rating . | . . . . Part Schematics Acquired . | . . . . Parts Built . | . . . . Matter . | . . . . Time . | . . . . Total Part Build Rating . | . . . . Parts Repaired . | . . . . Time . | . . . . Parts Recycled . | . . . . Recycled Matter . | . . . . Retrieved Matter . | . . . . Retrieved Components . | . . . . Parts Scanalyzed . | . . . . Part Schematics Acquired . | . . . . Parts Damaged . | . . . . Bothacking | -11 -10 -9 -9 ------------ Run | Scr Mat Mat Sto Used RIF Installer . | . . . . Robots Hacked . | . . . . Non-combat . | . . . . Combat . | . . . . Robot Hacks Applied . | . . . . Relay Couplers Released . | . . . . Robots Rewired . | . . . . Allies Hacked . | . . . . Hacks Repelled . | . . . . Allies | -11 -10 -9 -9 -------- Run | Scr Mat Mat Sto Total Allies . | . . . . Largest Group . | . . . . Highest-Rated Group . | . . . . Highest-Rated Ally . | . . . . Total Orders . | . . . . Ally Attacks . | . . . . Total Damage . | . . . . Kills . | . . . . Allies Corrupted . | . . . . Allies Melted . | . . . . Intel | -11 -10 -9 -9 ------- Run | Scr Mat Mat Sto Robot Analysis Total . | . . . . Derelict Logs Recovered . | . . . . Drone Launches . | . . . . Drone Recoveries . | . . . . Exploration | -11 -10 -9 -9 ------------- Run | Scr Mat Mat Sto Turns Passed 1140 | 65 283 430 362 Spaces Moved 530 | 39 150 209 132 Core 11 | 8 . . 3 Treads 519 | 31 150 209 129 Legs . | . . . . Wheels . | . . . . Hover . | . . . . Flight . | . . . . Fastest Speed 50 | 50 160 160 160 Average Speed 158 | 137 160 160 162 Slowest Speed 250 | 160 160 160 250 Overloaded Moves . | . . . . Propulsion Burnouts . | . . . . Robots Hopped . | . . . . Cave-ins Triggered . | . . . . Exploration Rate (%) 20 | 4 32 21 23 Regions Visited 3 Branch Regions 1 Pre-discovered Areas . | . . . . Known Exits Taken . | . . . . Unknown Exits Taken 3 | 1 1 1 . Scrap Searched . | . . . . Spaces Dug . | . . . . Terrain Destroyed 22 | . . 13 9 Melee . | . . . . Projectile 2 | . . . 2 AOE 20 | . . 13 7 Terrain Rammed . | . . . . Walls Destroyed . | . . . . Machines Disabled . | . . . . Actions | -11 -10 -9 -9 --------- Run | Scr Mat Mat Sto Total 690 | 50 169 261 210 Wait 44 | . 2 22 20 Move 527 | 38 149 208 132 Hop . | . . . . Pick Up 21 | 6 5 3 7 Fast Attach 3 | 2 . . 1 Attach 11 | 4 1 2 4 Detach . | . . . . Swap 5 | . . 3 2 Drop 4 | . . 1 3 Fire 75 | . 12 22 41 Melee . | . . . . Ram . | . . . . Kick . | . . . . Crush . | . . . . Escape Stasis . | . . . . Rewire . | . . . . Trap . | . . . . Miscellaneous . | . . . . Route ------- -11/Scrapyard -10/Materials (discovered 2 exits: [*Mat] / [*Min]) -9/Materials -9/Storage History --------- Turn | Location | Event 7 | -11/Scrapyard | Discovered new exit (range 13) 66 | -11/Scrapyard | Entered Materials 174 | -10/Materials | Discovered new exit (range 15) 315 | -10/Materials | Build established: Mutant 316 | -10/Materials | Discovered new exit (range 12) 349 | -10/Materials | Entered another Materials area 349 | -9/Materials | Evolved 2 slots: Utility x2 629 | -9/Materials | Discovered new exit (range 10) 779 | -9/Materials | Entered Storage 980 | -9/Storage | Garrison activated, responded to threat 1068 | -9/Storage | Destroyed 8 combat bots 1078 | -9/Storage | Lost 5 parts (2n2u1w) 1115 | -9/Storage | Core integrity fell below 50% 1141 | -9/Storage | Self-destructed Last Messages --------------- 01075_ Acquired 35 matter. 01076_ U-05 Engineer lays Concrete. 01077_ Acquired 45 matter. 01083_ Acquired Hvy. Assault Rifle. 01086_ R-06 Scavenger collects Lgt. Ion Engine. 01087_ U-05 Engineer builds a Wall. 01090_ Dropped Lgt. Treads. 01090_ Acquired Lgt. Treads. 01095_ Acquired 37 matter. 01097_ Acquired 27 matter. 01102_ K-01 Serf cleans the Terminal. 01102_ Imp. Light Cannon destroyed. 01107_ K-01 Serf cleans the Terminal. 01111_ Ion Engine destroyed. 01111_ K-01 Serf cleans the Terminal. 01117_ Imp. Terrain Scanner destroyed. 01123_ K-01 Serf cleans the Terminal. 01138_ K-01 Serf collects debris. 01138_ Lgt. Treads destroyed. 01141_ K-01 Serf collects debris. Map ----- +----------------------------------------------------+ | ?????????#?## ###??????????????? | | ?##########?# #????????????????? | | #??# """" ### #???????#??#?????? | | ???# """" ?# #?? ?????????????? | | ?#?# """" #?# #????????????????? | | ?#?# """" #?# #????#???????????? | | ???# #?# #????#?????G?????? | | ???? ### #????????????????? | | ???#+##+###T# # ???????????????? | | ?#?# #????????????????? | | ##?# #? ??????????????? | | ???# # ???????????????? | | ???#* [ ##???????????????? | | ####+### # #????????????? | | # *%+ % +????????? | | # [ #!%[ ##### #????????????? | | #| ! #** ##???####????????????? | | # + == ##???#???????????????? | | # =#### # #???????????????? | | # #### # #???????????????? | | ########??# + #???????????????? | | ??#???????# ## #???????????????? | | ????????#?# #??#????? ???????????? | | ???#??????# #????????????????????? | | ???????####+######???????????????? | | ?#?????# @ !#???????????????? | | #??????# ] #???????????????? | | ???????# k= a #???????????????? | | ###???##a!u #???????????????? | | ???##??###########???????????????? | | ?????????????????????????????????? | | ?????????????????????????????????? | | ?????????????????????????????????? | | ?????????????????????????????????? | | ?????????????????????????????????? | | ?????????????????????????????????? | | ?????????????????????????????????? | | ?????????????????????????????????? | | ?????????????????????????????????? | | ?????????????????????????????????? | | ?????????????????????????????????? | | ?????????????????????????????????? | | ?????????????????????????????????? | | | | | | | | | | | | | | | +----------------------------------------------------+ Best States ------------- Heat Dissipation 28 Energy Generation 10 Energy Capacity 250 Matter Stores 300 Matter Capacity 300 Sight Range 16 Terrain Scan Range 16 Terrain Scan Density 10 ECM Strength 1 Armor Coverage 300 Evasion (%) 40 Recoil Reduction 2 Item Schematics ----------------- None Robot Schematics ------------------ None Fabricated ------------ Nothing Alien Tech Used ----------------- None Achievements -------------- None Challenges ------------ None Game ------ Seed ArmageddonColdImmobilizer Manual? 0 Play Time 00:14:34 Cumulative 23.0 hours Start 2021.05.09 @ 15:46:59 End 2021.05.09 @ 17:34:39 Sessions 1 Manual Loads 0 Difficulty Rogue Special Mode None Game No. 25 Rogue 10 Adventurer 0 Explorer 15 Win Type - Total 0 Types 0/0/0/0/0/0/0/0/0 Lore% 20 Gallery% 28 Achievement% 19 Wizard Run 0 Options --------- ASCII 0 Keyboard 0 Movement Vi Keybinds 0 Fullscreen 2 Font 24/Terminus Map View 76x50 Tactical HUD 1 Map Filters NONE Filters NONE Steam 1 RUN: 69166897-50e3-4990-8e5a-18279d0ca106